{"text_format":"1","workbook":"xlsx","n_sheets":1,"sheets":["стр.1_5"],"not_rendered":{"charts":0,"images":0,"macros":0,"external_links":0,"defined_names":1,"comments":0,"pivot_tables":0},"unopened":[],"bounds":{"document_bytes":16777216,"sheet_cells":100000,"rows_first":2000,"rows_last":500,"rows_between":2000,"halvings":0,"cell_chars":16384,"cell_head_chars":4096},"cells_cut":0,"cells_raw":0,"read":"whole","date_system":"1900"}

{"sheet":"стр.1_5","index":0,"n_rows":161,"n_cols":164,"rows_kept":161,"cut":false,"hidden":false,"merged":[[64,148,64,163],[64,133,64,147],[62,120,63,132],[61,133,61,147],[64,120,64,132],[62,133,63,147],[62,148,63,163],[61,120,61,132],[61,148,61,163],[60,148,60,163],[59,120,59,132],[59,133,59,147],[59,148,59,163],[60,120,60,132],[60,133,60,147],[57,91,57,106],[54,148,55,163],[56,148,56,163],[57,148,57,163],[54,133,55,147],[57,133,57,147],[54,107,55,119],[53,148,53,163],[53,133,53,147],[56,133,56,147],[59,49,59,54],[59,55,59,61],[53,107,53,119],[58,133,58,147],[59,107,59,119],[57,55,57,61],[58,91,58,106],[65,91,65,106],[60,91,60,106],[61,107,61,119],[61,91,61,106],[62,91,63,106],[64,0,64,48],[62,107,63,119],[64,91,64,106],[65,107,65,119],[64,107,64,119],[64,76,64,90],[62,62,63,75],[62,76,63,90],[61,76,61,90],[60,62,60,75],[60,107,60,119],[58,76,58,90],[58,55,58,61],[58,0,58,48],[59,76,59,90],[61,62,61,75],[60,76,60,90],[60,0,60,48],[60,49,60,54],[61,0,61,48],[64,49,64,54],[62,49,63,54],[61,55,61,61],[61,49,61,54],[60,55,60,61],[63,0,63,48],[62,55,63,61],[64,55,64,61],[62,0,62,48],[52,91,52,106],[53,91,53,106],[53,62,53,75],[58,148,58,163],[57,107,57,119],[58,107,58,119],[57,120,57,132],[58,120,58,132],[54,120,55,132],[58,62,58,75],[59,62,59,75],[46,55,46,61],[49,0,49,48],[52,0,52,48],[47,0,47,48],[46,62,46,75],[58,49,58,54],[54,49,55,54],[59,0,59,48],[56,49,56,54],[56,120,56,132],[56,107,56,119],[55,0,55,48],[56,76,56,90],[56,91,56,106],[56,55,56,61],[57,76,57,90],[53,120,53,132],[50,0,50,48],[51,0,51,48],[45,62,45,75],[49,49,50,54],[49,76,50,90],[48,0,48,48],[46,0,46,48],[45,55,45,61],[45,0,45,48],[57,49,57,54],[57,0,57,48],[56,0,56,48],[54,91,55,106],[57,62,57,75],[54,55,55,61],[54,62,55,75],[54,76,55,90],[54,0,54,48],[52,55,52,61],[51,76,51,90],[51,62,51,75],[52,62,52,75],[52,76,52,90],[53,76,53,90],[53,0,53,48],[53,55,53,61],[52,49,52,54],[46,49,46,54],[31,0,31,48],[37,0,37,48],[34,0,34,48],[36,0,36,48],[35,0,35,48],[33,0,33,48],[32,0,32,48],[45,49,45,54],[39,49,39,54],[51,49,51,54],[51,55,51,61],[53,49,53,54],[47,49,48,54],[47,76,48,90],[47,62,48,75],[47,55,48,61],[49,62,50,75],[49,55,50,61],[44,91,44,106],[44,107,44,119],[39,120,39,132],[40,49,40,54],[44,76,44,90],[38,55,38,61],[38,62,38,75],[39,62,39,75],[40,76,40,90],[38,49,38,54],[39,76,39,90],[38,107,38,119],[36,55,37,61],[36,107,37,119],[39,133,39,147],[40,133,40,147],[39,91,39,106],[38,76,38,90],[39,55,39,61],[34,55,34,61],[34,49,34,54],[36,49,37,54],[35,49,35,54],[43,49,44,54],[40,55,40,61],[35,55,35,61],[29,49,29,54],[30,49,30,54],[31,49,31,54],[30,0,30,48],[29,0,29,48],[33,49,33,54],[32,49,32,54],[34,107,34,119],[38,0,38,48],[39,0,39,48],[32,55,32,61],[33,55,33,61],[34,62,34,75],[36,62,37,75],[35,62,35,75],[38,91,38,106],[40,0,40,48],[41,29,41,134],[40,62,40,75],[43,0,44,48],[43,55,44,61],[43,62,44,75],[40,120,40,132],[44,120,44,132],[40,107,40,119],[40,91,40,106],[30,55,30,61],[27,62,28,75],[29,55,29,61],[33,76,33,90],[33,62,33,75],[32,76,32,90],[31,55,31,61],[27,55,28,61],[32,62,32,75],[23,49,24,54],[29,107,29,119],[30,62,30,75],[31,62,31,75],[30,91,30,106],[31,76,31,90],[29,62,29,75],[29,76,29,90],[29,91,29,106],[30,76,30,90],[22,49,22,54],[28,0,28,48],[26,0,26,48],[26,49,26,54],[23,0,23,48],[24,0,24,48],[25,49,25,54],[25,0,25,48],[27,0,27,48],[27,49,28,54],[25,62,25,75],[26,55,26,61],[25,55,25,61],[23,55,24,61],[26,62,26,75],[21,0,21,48],[21,55,21,61],[21,49,21,54],[22,55,22,61],[22,0,22,48],[26,91,26,106],[21,76,21,90],[25,107,25,119],[23,76,24,90],[26,107,26,119],[25,76,25,90],[22,76,22,90],[21,107,21,119],[25,91,25,106],[23,120,24,132],[23,133,24,147],[22,91,22,106],[21,133,21,147],[22,120,22,132],[22,133,22,147],[23,107,24,119],[21,120,21,132],[22,107,22,119],[20,0,20,48],[18,49,19,54],[18,55,19,61],[19,0,19,48],[18,0,18,48],[15,49,15,54],[16,49,16,54],[20,49,20,54],[20,55,20,61],[16,55,16,61],[22,62,22,75],[23,91,24,106],[17,76,17,90],[18,62,19,75],[23,62,24,75],[16,62,16,75],[21,62,21,75],[20,62,20,75],[21,91,21,106],[20,76,20,90],[17,91,17,106],[16,91,16,106],[20,91,20,106],[18,76,19,90],[18,91,19,106],[16,76,16,90],[17,55,17,61],[17,49,17,54],[17,107,17,119],[18,120,19,132],[20,148,20,163],[17,148,17,163],[17,133,17,147],[18,133,19,147],[18,148,19,163],[18,107,19,119],[16,0,16,48],[16,133,16,147],[20,120,20,132],[16,107,16,119],[17,120,17,132],[20,107,20,119],[16,120,16,132],[20,133,20,147],[17,62,17,75],[17,0,17,48],[7,148,7,163],[4,30,4,132],[13,0,14,48],[14,133,14,147],[14,76,14,90],[14,107,14,119],[13,55,14,61],[6,49,6,132],[0,1,0,146],[13,76,13,147],[3,61,3,81],[12,0,12,163],[13,62,14,75],[6,148,6,163],[13,49,14,54],[14,91,14,106],[14,120,14,132],[3,86,3,88],[1,1,1,146],[5,148,5,163],[3,82,3,85],[15,62,15,75],[9,49,9,132],[5,49,5,132],[9,148,9,163],[11,148,11,163],[10,148,10,163],[15,120,15,132],[21,148,21,163],[29,148,29,163],[15,148,15,163],[27,148,28,163],[23,148,24,163],[25,148,25,163],[15,133,15,147],[15,91,15,106],[15,0,15,48],[8,148,8,163],[15,76,15,90],[8,49,8,132],[15,107,15,119],[13,148,14,163],[15,55,15,61],[51,148,51,163],[45,148,45,163],[49,148,50,163],[1,148,1,163],[2,148,2,163],[3,148,3,163],[4,148,4,163],[16,148,16,163],[22,148,22,163],[30,148,30,163],[49,133,50,147],[40,148,40,163],[45,133,45,147],[47,133,48,147],[44,133,44,147],[39,148,39,163],[43,76,43,147],[45,76,45,90],[32,133,32,147],[36,76,37,90],[35,76,35,90],[32,120,32,132],[32,91,32,106],[31,107,31,119],[31,91,31,106],[33,133,33,147],[32,107,32,119],[36,133,37,147],[31,148,31,163],[46,148,46,163],[43,148,44,163],[33,148,33,163],[35,148,35,163],[36,148,37,163],[34,148,34,163],[38,148,38,163],[25,120,25,132],[25,133,25,147],[27,133,28,147],[46,91,46,106],[36,91,37,106],[35,107,35,119],[39,107,39,119],[35,91,35,106],[45,91,45,106],[31,133,31,147],[33,120,33,132],[26,148,26,163],[27,120,28,132],[26,120,26,132],[27,76,28,90],[27,107,28,119],[26,76,26,90],[27,91,28,106],[26,133,26,147],[32,148,32,163],[34,76,34,90],[34,91,34,106],[33,91,33,106],[38,133,38,147],[36,120,37,132],[35,133,35,147],[35,120,35,132],[33,107,33,119],[38,120,38,132],[34,133,34,147],[29,133,29,147],[30,133,30,147],[30,107,30,119],[30,120,30,132],[29,120,29,132],[51,120,51,132],[51,107,51,119],[46,133,46,147],[31,120,31,132],[34,120,34,132],[49,91,50,106],[47,91,48,106],[46,107,46,119],[45,107,45,119],[45,120,45,132],[49,107,50,119],[49,120,50,132],[47,120,48,132],[46,120,46,132],[51,133,51,147],[56,62,56,75],[65,62,65,75],[65,76,65,90],[65,120,65,132],[65,133,65,147],[64,62,64,75],[52,120,52,132],[52,133,52,147],[59,91,59,106],[65,148,65,163],[68,120,68,132],[71,49,72,54],[66,107,67,119],[66,55,67,61],[66,49,67,54],[66,62,67,75],[68,91,68,106],[65,49,65,54],[65,55,65,61],[66,133,67,147],[71,76,71,147],[66,120,67,132],[68,107,68,119],[68,76,68,90],[68,148,68,163],[66,148,67,163],[68,133,68,147],[66,76,67,90],[66,91,67,106],[77,76,77,90],[75,76,76,90],[73,76,73,90],[46,76,46,90],[51,91,51,106],[52,148,52,163],[52,107,52,119],[47,107,48,119],[47,148,48,163],[73,148,73,163],[68,49,68,54],[72,91,72,106],[71,55,72,61],[68,62,68,75],[73,91,73,106],[68,55,68,61],[71,62,72,75],[72,76,72,90],[73,55,73,61],[73,49,73,54],[77,55,77,61],[74,0,74,48],[77,0,77,48],[73,62,73,75],[77,120,77,132],[67,0,67,48],[66,0,66,48],[65,0,65,48],[68,0,68,48],[71,0,72,48],[73,0,73,48],[77,49,77,54],[74,55,74,61],[74,49,74,54],[75,148,76,163],[71,148,72,163],[72,107,72,119],[72,120,72,132],[74,148,74,163],[77,107,77,119],[73,107,73,119],[73,120,73,132],[72,133,72,147],[73,133,73,147],[75,91,76,106],[75,133,76,147],[75,107,76,119],[74,91,74,106],[74,62,74,75],[75,120,76,132],[74,120,74,132],[74,133,74,147],[74,107,74,119],[75,0,75,48],[75,55,76,61],[76,0,76,48],[75,49,76,54],[75,62,76,75],[74,76,74,90],[79,0,79,48],[81,0,81,48],[79,76,80,90],[79,55,80,61],[81,55,81,61],[81,62,81,75],[79,49,80,54],[81,76,81,90],[81,49,81,54],[79,62,80,75],[82,0,82,48],[77,91,77,106],[83,62,83,75],[83,91,83,106],[78,0,78,48],[77,62,77,75],[83,0,83,48],[83,49,83,54],[82,49,82,54],[80,0,80,48],[83,120,83,132],[79,133,80,147],[82,76,82,90],[78,62,78,75],[81,91,81,106],[82,91,82,106],[78,76,78,90],[78,120,78,132],[78,91,78,106],[78,49,78,54],[78,55,78,61],[78,107,78,119],[81,133,81,147],[83,55,83,61],[82,133,82,147],[79,148,80,163],[79,120,80,132],[82,62,82,75],[79,91,80,106],[82,55,82,61],[83,107,83,119],[82,107,82,119],[79,107,80,119],[77,148,77,163],[78,148,78,163],[82,148,82,163],[86,133,86,147],[84,133,85,147],[84,148,85,163],[77,133,77,147],[83,148,83,163],[78,133,78,147],[83,133,83,147],[86,91,86,106],[87,91,87,106],[86,62,86,75],[84,107,85,119],[81,107,81,119],[89,91,89,106],[81,148,81,163],[83,76,83,90],[82,120,82,132],[81,120,81,132],[84,62,85,75],[87,107,87,119],[84,76,85,90],[86,76,86,90],[86,107,86,119],[84,91,85,106],[94,148,94,163],[100,148,101,163],[88,107,88,119],[87,133,87,147],[89,107,89,119],[89,120,89,132],[91,120,92,132],[90,120,90,132],[93,148,93,163],[91,133,92,147],[93,120,93,132],[84,120,85,132],[86,120,86,132],[88,120,88,132],[87,120,87,132],[88,133,88,147],[89,148,89,163],[86,148,86,163],[87,148,87,163],[88,148,88,163],[101,133,101,147],[101,120,101,132],[96,120,96,132],[89,134,89,147],[90,133,90,147],[93,133,93,147],[84,55,85,61],[88,62,88,75],[88,55,88,61],[90,62,90,75],[87,62,87,75],[89,62,89,75],[87,76,87,90],[88,76,88,90],[97,0,97,48],[97,49,97,54],[97,55,97,61],[94,76,94,90],[87,0,87,48],[97,76,97,90],[93,76,93,90],[97,62,97,75],[86,0,86,48],[94,0,94,48],[94,55,94,61],[86,55,86,61],[88,0,88,48],[93,49,93,54],[93,55,93,61],[91,49,92,54],[91,55,92,61],[90,0,90,48],[92,0,92,48],[100,0,101,48],[102,62,102,75],[102,76,102,90],[100,55,101,61],[98,29,98,134],[93,0,93,48],[100,76,100,147],[102,107,102,119],[101,76,101,90],[96,0,96,48],[94,107,94,119],[94,120,94,132],[96,107,96,119],[94,133,94,147],[96,55,96,61],[96,49,96,54],[94,62,94,75],[96,62,96,75],[96,76,96,90],[94,49,94,54],[96,148,96,163],[96,133,96,147],[91,62,92,75],[97,148,97,163],[94,91,94,106],[93,62,93,75],[91,76,92,90],[93,107,93,119],[91,148,92,163],[97,91,97,106],[90,148,90,163],[97,133,97,147],[97,120,97,132],[90,107,90,119],[93,91,93,106],[91,91,92,106],[91,107,92,119],[96,91,96,106],[97,107,97,119],[90,49,90,54],[90,55,90,61],[88,91,88,106],[90,91,90,106],[89,1,89,48],[89,76,89,90],[88,49,88,54],[90,76,90,90],[109,55,109,61],[103,55,103,61],[109,0,109,48],[109,49,109,54],[106,55,107,61],[108,0,108,48],[108,49,108,54],[108,55,108,61],[103,0,103,48],[103,49,103,54],[100,49,101,54],[100,62,101,75],[101,91,101,106],[85,0,85,48],[87,49,87,54],[87,55,87,61],[86,49,86,54],[84,49,85,54],[84,0,84,48],[91,0,91,48],[102,55,102,61],[102,148,102,163],[102,120,102,132],[102,133,102,147],[101,107,101,119],[103,120,103,132],[106,120,107,132],[103,148,103,163],[104,133,105,147],[106,133,107,147],[103,133,103,147],[104,120,105,132],[106,148,107,163],[104,148,105,163],[106,107,107,119],[107,0,107,48],[105,0,105,48],[104,76,105,90],[106,91,107,106],[106,76,107,90],[106,62,107,75],[104,91,105,106],[104,107,105,119],[106,0,106,48],[106,49,107,54],[102,91,102,106],[102,49,102,54],[103,62,103,75],[104,0,104,48],[104,49,105,54],[104,55,105,61],[103,91,103,106],[102,0,102,48],[108,91,108,106],[109,91,109,106],[109,76,109,90],[104,62,105,75],[109,62,109,75],[108,62,108,75],[111,148,111,163],[111,133,111,147],[110,120,110,132],[110,148,110,163],[108,148,108,163],[108,120,108,132],[112,107,112,119],[111,91,111,106],[111,120,111,132],[109,148,109,163],[108,107,108,119],[108,133,108,147],[110,133,110,147],[109,133,109,147],[110,107,110,119],[112,133,112,147],[112,148,112,163],[113,133,113,147],[113,120,113,132],[116,148,117,163],[115,148,115,163],[114,120,114,132],[112,120,112,132],[114,133,114,147],[116,120,117,132],[114,107,114,119],[115,120,115,132],[116,133,117,147],[118,120,118,132],[116,107,117,119],[115,133,115,147],[115,107,115,119],[113,107,113,119],[116,91,117,106],[109,120,109,132],[108,76,108,90],[111,107,111,119],[110,76,110,90],[111,76,111,90],[110,91,110,106],[115,76,115,90],[115,91,115,106],[114,148,114,163],[113,148,113,163],[103,76,103,90],[103,107,103,119],[109,107,109,119],[113,76,113,90],[112,91,112,106],[112,76,112,90],[114,76,114,90],[113,91,113,106],[113,49,113,54],[113,0,113,48],[117,0,117,48],[118,49,118,54],[115,0,115,48],[115,49,115,54],[115,55,115,61],[110,62,110,75],[111,62,111,75],[111,55,111,61],[115,62,115,75],[112,62,112,75],[113,62,113,75],[110,55,110,61],[113,55,113,61],[112,55,112,61],[114,91,114,106],[112,49,112,54],[111,0,111,48],[110,49,110,54],[112,0,112,48],[110,0,110,48],[111,49,111,54],[114,49,114,54],[114,62,114,75],[114,55,114,61],[116,76,117,90],[123,0,123,48],[122,49,122,54],[119,0,119,48],[120,0,120,48],[118,0,118,48],[120,62,120,75],[123,62,123,75],[122,76,122,90],[121,76,121,90],[118,55,118,61],[120,49,120,54],[118,91,118,106],[119,107,119,119],[119,91,119,106],[118,62,118,75],[118,76,118,90],[120,91,120,106],[114,0,114,48],[119,148,119,163],[118,148,118,163],[116,49,117,54],[120,55,120,61],[119,49,119,54],[116,0,116,48],[116,62,117,75],[116,55,117,61],[120,120,120,132],[120,133,120,147],[118,107,118,119],[119,133,119,147],[119,120,119,132],[120,107,120,119],[120,148,120,163],[118,133,118,147],[132,0,132,48],[132,49,132,54],[130,55,131,61],[125,0,125,48],[125,49,126,54],[126,0,126,48],[127,49,127,54],[127,0,127,48],[120,76,120,90],[121,62,121,75],[119,76,119,90],[122,55,122,61],[123,91,123,106],[123,76,123,90],[119,62,119,75],[130,0,131,48],[130,49,131,54],[124,0,124,48],[124,49,124,54],[119,55,119,61],[121,55,121,61],[122,0,122,48],[121,0,121,48],[125,55,126,61],[125,76,126,90],[125,62,126,75],[124,76,124,90],[124,55,124,61],[123,55,123,61],[123,49,123,54],[121,49,121,54],[132,55,132,61],[125,107,126,119],[125,91,126,106],[130,62,131,75],[131,76,131,90],[127,91,127,106],[131,91,131,106],[127,55,127,61],[127,62,127,75],[132,62,132,75],[124,62,124,75],[123,120,123,132],[124,91,124,106],[124,107,124,119],[122,91,122,106],[127,107,127,119],[122,62,122,75],[124,133,124,147],[123,148,123,163],[121,133,121,147],[122,133,122,147],[132,76,132,90],[122,120,122,132],[121,120,121,132],[121,91,121,106],[131,120,131,132],[123,107,123,119],[122,107,122,119],[121,107,121,119],[133,120,133,132],[124,148,124,163],[123,133,123,147],[124,120,124,132],[121,148,121,163],[122,148,122,163],[132,107,132,119],[131,133,131,147],[127,148,127,163],[134,107,135,119],[133,107,133,119],[132,120,132,132],[133,133,133,147],[134,120,135,132],[132,133,132,147],[130,148,131,163],[136,148,136,163],[134,148,135,163],[134,133,135,147],[132,148,132,163],[125,133,126,147],[125,120,126,132],[125,148,126,163],[136,120,136,132],[133,148,133,163],[130,76,130,147],[137,55,137,61],[134,55,135,61],[127,133,127,147],[127,120,127,132],[127,76,127,90],[133,55,133,61],[133,91,133,106],[136,91,136,106],[131,107,131,119],[132,91,132,106],[137,107,137,119],[138,91,139,106],[133,0,133,48],[156,41,156,58],[136,0,136,48],[138,49,139,54],[139,0,139,48],[138,0,138,48],[146,17,146,34],[133,49,133,54],[134,91,135,106],[133,62,133,75],[134,62,135,75],[134,76,135,90],[133,76,133,90],[156,91,156,118],[136,107,136,119],[136,76,136,90],[138,107,139,119],[138,76,139,90],[134,0,134,48],[134,49,135,54],[154,86,154,111],[150,97,150,163],[138,133,139,147],[140,133,140,147],[137,91,137,106],[136,133,136,147],[137,0,137,48],[137,49,137,54],[145,132,145,157],[144,114,144,128],[151,97,151,163],[153,136,153,163],[136,49,136,54],[136,62,136,75],[140,107,140,119],[140,91,140,106],[137,76,137,90],[138,62,139,75],[140,55,140,61],[138,148,139,163],[135,0,135,48],[140,49,140,54],[144,13,144,34],[140,0,140,48],[143,13,143,34],[136,55,136,61],[138,55,139,61],[137,62,137,75],[154,136,154,163]],"merged_total":1029,"flags":["merged_cut"]}
[null,"ОТЧЕТ"]
[null,"ОБ ИСПОЛНЕНИИ УЧРЕЖДЕНИЕМ ПЛАНА ЕГО ФИНАНСОВО-ХОЗЯЙСТВЕННОЙ ДЕЯТЕЛЬНОСТИ",null,null,null,null,null,null,null,null,null,null,null,null,null,null,null,null,null,null,null,null,null,null,null,null,null,null,null,null,null,null,null,null,null,null,null,null,null,null,null,null,null,null,null,null,null,null,null,null,null,null,null,null,null,null,null,null,null,null,null,null,null,null,null,null,null,null,null,null,null,null,null,null,null,null,null,null,null,null,null,null,null,null,null,null,null,null,null,null,null,null,null,null,null,null,null,null,null,null,null,null,null,null,null,null,null,null,null,null,null,null,null,null,null,null,null,null,null,null,null,null,null,null,null,null,null,null,null,null,null,null,null,null,null,null,null,null,null,null,null,null,null,null,null,null,null,null,"КОДЫ"]
[null,null,null,null,null,null,null,null,null,null,null,null,null,null,null,null,null,null,null,null,null,null,null,null,null,null,null,null,null,null,null,null,null,null,null,null,null,null,null,null,null,null,null,null,null,null,null,null,null,null,null,null,null,null,null,null,null,null,null,null,null,null,null,null,null,null,null,null,null,null,null,null,null,null,null,null,null,null,null,null,null,null,null,null,null,null,null,null,null,null,null,null,null,null,null,null,null,null,null,null,null,null,null,null,null,null,null,null,null,null,null,null,null,null,null,null,null,null,null,null,null,null,null,null,null,null,null,null,null,null,null,null,null,null,null,null,null,null,null,null,null,null,null,null,null,null,"Форма по ОКУД",null,"0503737"]
[null,null,null,null,null,null,null,null,null,null,null,null,null,null,null,null,null,null,null,null,null,null,null,null,null,null,null,null,null,null,null,null,null,null,null,null,null,null,null,null,null,null,null,null,null,null,null,null,null,null,null,null,null,null,null,null,null,null,null,null,"на 1 ","января",null,null,null,null,null,null,null,null,null,null,null,null,null,null,null,null,null,null,null,null,20,null,null,null,"16",null,null," г.",null,null,null,null,null,null,null,null,null,null,null,null,null,null,null,null,null,null,null,null,null,null,null,null,null,null,null,null,null,null,null,null,null,null,null,null,null,null,null,null,null,null,null,null,null,null,null,null,null,null,null,null,null,null,null,null,"Дата"]
["Учреждение",null,null,null,null,null,null,null,null,null,null,null,null,null,null,null,null,null,null,null,null,null,null,null,null,null,null,null,null,null,"МБДОУ-Хотынецкий детский сад \"Алёнушка\"",null,null,null,null,null,null,null,null,null,null,null,null,null,null,null,null,null,null,null,null,null,null,null,null,null,null,null,null,null,null,null,null,null,null,null,null,null,null,null,null,null,null,null,null,null,null,null,null,null,null,null,null,null,null,null,null,null,null,null,null,null,null,null,null,null,null,null,null,null,null,null,null,null,null,null,null,null,null,null,null,null,null,null,null,null,null,null,null,null,null,null,null,null,null,null,null,null,null,null,null,null,null,null,null,null,null,null,null,null,null,null,null,null,null,null,"по ОКПО",null,"23220031"]
["Обособленное подразделение"]
["Учредитель",null,null,null,null,null,null,null,null,null,null,null,null,null,null,null,null,null,null,null,null,null,null,null,null,null,null,null,null,null,null,null,null,null,null,null,null,null,null,null,null,null,null,null,null,null,null,null,null,null,null,null,null,null,null,null,null,null,null,null,null,null,null,null,null,null,null,null,null,null,null,null,null,null,null,null,null,null,null,null,null,null,null,null,null,null,null,null,null,null,null,null,null,null,null,null,null,null,null,null,null,null,null,null,null,null,null,null,null,null,null,null,null,null,null,null,null,null,null,null,null,null,null,null,null,null,null,null,null,null,null,null,null,null,null,null,null,null,null,null,null,null,null,null,null,null,"по ОКАТО",null,"54257551000"]
["Наименование органа, осуществля-",null,null,null,null,null,null,null,null,null,null,null,null,null,null,null,null,null,null,null,null,null,null,null,null,null,null,null,null,null,null,null,null,null,null,null,null,null,null,null,null,null,null,null,null,null,null,null,null,null,null,null,null,null,null,null,null,null,null,null,null,null,null,null,null,null,null,null,null,null,null,null,null,null,null,null,null,null,null,null,null,null,null,null,null,null,null,null,null,null,null,null,null,null,null,null,null,null,null,null,null,null,null,null,null,null,null,null,null,null,null,null,null,null,null,null,null,null,null,null,null,null,null,null,null,null,null,null,null,null,null,null,null,null,null,null,null,null,null,null,null,null,null,null,null,null,"по ОКПО"]
["ющего полномочия учредителя",null,null,null,null,null,null,null,null,null,null,null,null,null,null,null,null,null,null,null,null,null,null,null,null,null,null,null,null,null,null,null,null,null,null,null,null,null,null,null,null,null,null,null,null,null,null,null,null,"Администрация Хотынецкого района Орловской области",null,null,null,null,null,null,null,null,null,null,null,null,null,null,null,null,null,null,null,null,null,null,null,null,null,null,null,null,null,null,null,null,null,null,null,null,null,null,null,null,null,null,null,null,null,null,null,null,null,null,null,null,null,null,null,null,null,null,null,null,null,null,null,null,null,null,null,null,null,null,null,null,null,null,null,null,null,null,null,null,null,null,null,null,null,null,null,null,null,null,null,null,null,null,null,null,"Глава по БК"]
["Вид финансового обеспечения (деятельности)",null,null,null,null,null,null,null,null,null,null,null,null,null,null,null,null,null,null,null,null,null,null,null,null,null,null,null,null,null,null,null,null,null,null,null,null,null,null,null,null,null,null,null,null,null,null,null,null,2]
["Периодичность: квартальная, годовая"]
["Единица измерения: руб.",null,null,null,null,null,null,null,null,null,null,null,null,null,null,null,null,null,null,null,null,null,null,null,null,null,null,null,null,null,null,null,null,null,null,null,null,null,null,null,null,null,null,null,null,null,null,null,null,null,null,null,null,null,null,null,null,null,null,null,null,null,null,null,null,null,null,null,null,null,null,null,null,null,null,null,null,null,null,null,null,null,null,null,null,null,null,null,null,null,null,null,null,null,null,null,null,null,null,null,null,null,null,null,null,null,null,null,null,null,null,null,null,null,null,null,null,null,null,null,null,null,null,null,null,null,null,null,null,null,null,null,null,null,null,null,null,null,null,null,null,null,null,null,null,null,"по ОКЕИ",null,"383"]
["1. Доходы учреждения"]
["Наименование показателя",null,null,null,null,null,null,null,null,null,null,null,null,null,null,null,null,null,null,null,null,null,null,null,null,null,null,null,null,null,null,null,null,null,null,null,null,null,null,null,null,null,null,null,null,null,null,null,null,"Код стро-ки",null,null,null,null,null,"Код анали-тики",null,null,null,null,null,null,"Утверждено плановых назначений",null,null,null,null,null,null,null,null,null,null,null,null,null,"Исполнено плановых назначений",null,null,null,null,null,null,null,null,null,null,null,null,null,null,null,null,null,null,null,null,null,null,null,null,null,null,null,null,null,null,null,null,null,null,null,null,null,null,null,null,null,null,null,null,null,null,null,null,null,null,null,null,null,null,null,null,null,null,null,null,null,null,null,null,null,null,null,null,null,null,null,"Не исполнено плановых назначений"]
[null,null,null,null,null,null,null,null,null,null,null,null,null,null,null,null,null,null,null,null,null,null,null,null,null,null,null,null,null,null,null,null,null,null,null,null,null,null,null,null,null,null,null,null,null,null,null,null,null,null,null,null,null,null,null,null,null,null,null,null,null,null,null,null,null,null,null,null,null,null,null,null,null,null,null,null,"через лицевые счета",null,null,null,null,null,null,null,null,null,null,null,null,null,null,"через банковские счета",null,null,null,null,null,null,null,null,null,null,null,null,null,null,null,"через кассу учреждения",null,null,null,null,null,null,null,null,null,null,null,null,"некассовыми операциями",null,null,null,null,null,null,null,null,null,null,null,null,"итого"]
[1,null,null,null,null,null,null,null,null,null,null,null,null,null,null,null,null,null,null,null,null,null,null,null,null,null,null,null,null,null,null,null,null,null,null,null,null,null,null,null,null,null,null,null,null,null,null,null,null,2,null,null,null,null,null,3,null,null,null,null,null,null,4,null,null,null,null,null,null,null,null,null,null,null,null,null,5,null,null,null,null,null,null,null,null,null,null,null,null,null,null,6,null,null,null,null,null,null,null,null,null,null,null,null,null,null,null,7,null,null,null,null,null,null,null,null,null,null,null,null,8,null,null,null,null,null,null,null,null,null,null,null,null,9,null,null,null,null,null,null,null,null,null,null,null,null,null,null,10]
["Доходы - всего",null,null,null,null,null,null,null,null,null,null,null,null,null,null,null,null,null,null,null,null,null,null,null,null,null,null,null,null,null,null,null,null,null,null,null,null,null,null,null,null,null,null,null,null,null,null,null,null,"010",null,null,null,null,null,null,null,null,null,null,null,null,{"$f":"BK21+BK41","v":1909318.21},null,null,null,null,null,null,null,null,null,null,null,null,null,{"$f":"BY41","v":0},null,null,null,null,null,null,null,null,null,null,null,null,null,null,null,null,null,null,null,null,null,null,null,null,null,null,null,null,null,null,{"$f":"DD21","v":1909318.21},null,null,null,null,null,null,null,null,null,null,null,null,null,null,null,null,null,null,null,null,null,null,null,null,null,{"$f":"BY17+DD17","v":1909318.21},null,null,null,null,null,null,null,null,null,null,null,null,null,null,{"$f":"BK17-ED17","v":0}]
["Доходы от собственности",null,null,null,null,null,null,null,null,null,null,null,null,null,null,null,null,null,null,null,null,null,null,null,null,null,null,null,null,null,null,null,null,null,null,null,null,null,null,null,null,null,null,null,null,null,null,null,null,"030",null,null,null,null,null,"120"]
["из них:",null,null,null,null,null,null,null,null,null,null,null,null,null,null,null,null,null,null,null,null,null,null,null,null,null,null,null,null,null,null,null,null,null,null,null,null,null,null,null,null,null,null,null,null,null,null,null,null,"101",null,null,null,null,null,"120"]
["от аренды активов"]
["Доходы от оказания платных услуг (работ)",null,null,null,null,null,null,null,null,null,null,null,null,null,null,null,null,null,null,null,null,null,null,null,null,null,null,null,null,null,null,null,null,null,null,null,null,null,null,null,null,null,null,null,null,null,null,null,null,"040",null,null,null,null,null,"130",null,null,null,null,null,null,1909318.21,null,null,null,null,null,null,null,null,null,null,null,null,null,null,null,null,null,null,null,null,null,null,null,null,null,null,null,null,null,null,null,null,null,null,null,null,null,null,null,null,null,null,null,null,1909318.21,null,null,null,null,null,null,null,null,null,null,null,null,null,null,null,null,null,null,null,null,null,null,null,null,null,{"$f":"DD21","v":1909318.21},null,null,null,null,null,null,null,null,null,null,null,null,null,null,{"$f":"BK21-DD21","v":0}]
["Доходы от штрафов, пеней, иных сумм принудительного изъятия",null,null,null,null,null,null,null,null,null,null,null,null,null,null,null,null,null,null,null,null,null,null,null,null,null,null,null,null,null,null,null,null,null,null,null,null,null,null,null,null,null,null,null,null,null,null,null,null,"050",null,null,null,null,null,"140"]
["Безвозмездные поступления от бюджетов",null,null,null,null,null,null,null,null,null,null,null,null,null,null,null,null,null,null,null,null,null,null,null,null,null,null,null,null,null,null,null,null,null,null,null,null,null,null,null,null,null,null,null,null,null,null,null,null,"060",null,null,null,null,null,"150"]
["в том числе:",null,null,null,null,null,null,null,null,null,null,null,null,null,null,null,null,null,null,null,null,null,null,null,null,null,null,null,null,null,null,null,null,null,null,null,null,null,null,null,null,null,null,null,null,null,null,null,null,"062",null,null,null,null,null,"152"]
["поступления от наднациональных организаций и правительств иностранных государств"]
["поступления от международных финансовых организаций",null,null,null,null,null,null,null,null,null,null,null,null,null,null,null,null,null,null,null,null,null,null,null,null,null,null,null,null,null,null,null,null,null,null,null,null,null,null,null,null,null,null,null,null,null,null,null,null,"063",null,null,null,null,null,"153"]
["Доходы от операций с активами",null,null,null,null,null,null,null,null,null,null,null,null,null,null,null,null,null,null,null,null,null,null,null,null,null,null,null,null,null,null,null,null,null,null,null,null,null,null,null,null,null,null,null,null,null,null,null,null,"090",null,null,null,null,null,"х"]
["в том числе:",null,null,null,null,null,null,null,null,null,null,null,null,null,null,null,null,null,null,null,null,null,null,null,null,null,null,null,null,null,null,null,null,null,null,null,null,null,null,null,null,null,null,null,null,null,null,null,null,"092",null,null,null,null,null,"410"]
["от выбытий основных средств"]
["от выбытий нематериальных активов",null,null,null,null,null,null,null,null,null,null,null,null,null,null,null,null,null,null,null,null,null,null,null,null,null,null,null,null,null,null,null,null,null,null,null,null,null,null,null,null,null,null,null,null,null,null,null,null,"093",null,null,null,null,null,"420"]
["от выбытий непроизведенных активов",null,null,null,null,null,null,null,null,null,null,null,null,null,null,null,null,null,null,null,null,null,null,null,null,null,null,null,null,null,null,null,null,null,null,null,null,null,null,null,null,null,null,null,null,null,null,null,null,"094",null,null,null,null,null,"430"]
["от выбытий материальных запасов",null,null,null,null,null,null,null,null,null,null,null,null,null,null,null,null,null,null,null,null,null,null,null,null,null,null,null,null,null,null,null,null,null,null,null,null,null,null,null,null,null,null,null,null,null,null,null,null,"095",null,null,null,null,null,"440"]
["от выбытий ценных бумаг, кроме акций",null,null,null,null,null,null,null,null,null,null,null,null,null,null,null,null,null,null,null,null,null,null,null,null,null,null,null,null,null,null,null,null,null,null,null,null,null,null,null,null,null,null,null,null,null,null,null,null,"096",null,null,null,null,null,"620"]
["от выбытий акций ",null,null,null,null,null,null,null,null,null,null,null,null,null,null,null,null,null,null,null,null,null,null,null,null,null,null,null,null,null,null,null,null,null,null,null,null,null,null,null,null,null,null,null,null,null,null,null,null,"097",null,null,null,null,null,"630"]
["от выбытий иных финансовых активов",null,null,null,null,null,null,null,null,null,null,null,null,null,null,null,null,null,null,null,null,null,null,null,null,null,null,null,null,null,null,null,null,null,null,null,null,null,null,null,null,null,null,null,null,null,null,null,null,"098",null,null,null,null,null,"650"]
["Прочие доходы",null,null,null,null,null,null,null,null,null,null,null,null,null,null,null,null,null,null,null,null,null,null,null,null,null,null,null,null,null,null,null,null,null,null,null,null,null,null,null,null,null,null,null,null,null,null,null,null,"100",null,null,null,null,null,"180"]
["из них:",null,null,null,null,null,null,null,null,null,null,null,null,null,null,null,null,null,null,null,null,null,null,null,null,null,null,null,null,null,null,null,null,null,null,null,null,null,null,null,null,null,null,null,null,null,null,null,null,"101",null,null,null,null,null,"180"]
["субсидии на выполнение государственного (муниципального) задания"]
["субсидии на иные цели ",null,null,null,null,null,null,null,null,null,null,null,null,null,null,null,null,null,null,null,null,null,null,null,null,null,null,null,null,null,null,null,null,null,null,null,null,null,null,null,null,null,null,null,null,null,null,null,null,"102",null,null,null,null,null,"180"]
["бюджетные инвестиции",null,null,null,null,null,null,null,null,null,null,null,null,null,null,null,null,null,null,null,null,null,null,null,null,null,null,null,null,null,null,null,null,null,null,null,null,null,null,null,null,null,null,null,null,null,null,null,null,"103",null,null,null,null,null,"180"]
["иные доходы",null,null,null,null,null,null,null,null,null,null,null,null,null,null,null,null,null,null,null,null,null,null,null,null,null,null,null,null,null,null,null,null,null,null,null,null,null,null,null,null,null,null,null,null,null,null,null,null,"104",null,null,null,null,null,"180"]
[null,null,null,null,null,null,null,null,null,null,null,null,null,null,null,null,null,null,null,null,null,null,null,null,null,null,null,null,null,"2. Расходы учреждения",null,null,null,null,null,null,null,null,null,null,null,null,null,null,null,null,null,null,null,null,null,null,null,null,null,null,null,null,null,null,null,null,null,null,null,null,null,null,null,null,null,null,null,null,null,null,null,null,null,null,null,null,null,null,null,null,null,null,null,null,null,null,null,null,null,null,null,null,null,null,null,null,null,null,null,null,null,null,null,null,null,null,null,null,null,null,null,null,null,null,null,null,null,null,null,null,null,null,null,null,null,null,null,null,null,null,null,null,null,null,null,null,null,null,null,null,null,null,null,null,null,null,null,null,null,null,null,null,null,null,null,null,null,"Форма 0503737 с. 2"]
[]
["Наименование показателя",null,null,null,null,null,null,null,null,null,null,null,null,null,null,null,null,null,null,null,null,null,null,null,null,null,null,null,null,null,null,null,null,null,null,null,null,null,null,null,null,null,null,null,null,null,null,null,null,"Код стро-ки",null,null,null,null,null,"Код анали-тики",null,null,null,null,null,null,"Утверждено плановых назначений",null,null,null,null,null,null,null,null,null,null,null,null,null,"Исполнено плановых назначений",null,null,null,null,null,null,null,null,null,null,null,null,null,null,null,null,null,null,null,null,null,null,null,null,null,null,null,null,null,null,null,null,null,null,null,null,null,null,null,null,null,null,null,null,null,null,null,null,null,null,null,null,null,null,null,null,null,null,null,null,null,null,null,null,null,null,null,null,null,null,null,"Не исполнено плановых назначений"]
[null,null,null,null,null,null,null,null,null,null,null,null,null,null,null,null,null,null,null,null,null,null,null,null,null,null,null,null,null,null,null,null,null,null,null,null,null,null,null,null,null,null,null,null,null,null,null,null,null,null,null,null,null,null,null,null,null,null,null,null,null,null,null,null,null,null,null,null,null,null,null,null,null,null,null,null,"через лицевые счета",null,null,null,null,null,null,null,null,null,null,null,null,null,null,"через банковские счета",null,null,null,null,null,null,null,null,null,null,null,null,null,null,null,"через кассу учреждения",null,null,null,null,null,null,null,null,null,null,null,null,"некассовыми операциями",null,null,null,null,null,null,null,null,null,null,null,null,"итого"]
[1,null,null,null,null,null,null,null,null,null,null,null,null,null,null,null,null,null,null,null,null,null,null,null,null,null,null,null,null,null,null,null,null,null,null,null,null,null,null,null,null,null,null,null,null,null,null,null,null,2,null,null,null,null,null,3,null,null,null,null,null,null,4,null,null,null,null,null,null,null,null,null,null,null,null,null,5,null,null,null,null,null,null,null,null,null,null,null,null,null,null,6,null,null,null,null,null,null,null,null,null,null,null,null,null,null,null,7,null,null,null,null,null,null,null,null,null,null,null,null,8,null,null,null,null,null,null,null,null,null,null,null,null,9,null,null,null,null,null,null,null,null,null,null,null,null,null,null,10]
["Расходы - всего",null,null,null,null,null,null,null,null,null,null,null,null,null,null,null,null,null,null,null,null,null,null,null,null,null,null,null,null,null,null,null,null,null,null,null,null,null,null,null,null,null,null,null,null,null,null,null,null,"200",null,null,null,null,null,"х",null,null,null,null,null,null,{"$f":"BK54+BK84","v":1909318.21},null,null,null,null,null,null,null,null,null,null,null,null,null,{"$f":"BY54+BY84","v":1909318.21},null,null,null,null,null,null,null,null,null,null,null,null,null,null,null,null,null,null,null,null,null,null,null,null,null,null,null,null,null,null,{"$f":"DD84","v":0},null,null,null,null,null,null,null,null,null,null,null,null,null,null,null,null,null,null,null,null,null,null,null,null,null,{"$f":"ED54+ED84","v":1909318.21},null,null,null,null,null,null,null,null,null,null,null,null,null,null,{"$f":"BK47-ED47","v":0}]
["в том числе:",null,null,null,null,null,null,null,null,null,null,null,null,null,null,null,null,null,null,null,null,null,null,null,null,null,null,null,null,null,null,null,null,null,null,null,null,null,null,null,null,null,null,null,null,null,null,null,null,"160",null,null,null,null,null,"210"]
["Оплата труда и начисления на выплаты по оплате труда"]
["в том числе:",null,null,null,null,null,null,null,null,null,null,null,null,null,null,null,null,null,null,null,null,null,null,null,null,null,null,null,null,null,null,null,null,null,null,null,null,null,null,null,null,null,null,null,null,null,null,null,null,"161",null,null,null,null,null,"211"]
["заработная плата"]
["прочие выплаты",null,null,null,null,null,null,null,null,null,null,null,null,null,null,null,null,null,null,null,null,null,null,null,null,null,null,null,null,null,null,null,null,null,null,null,null,null,null,null,null,null,null,null,null,null,null,null,null,"162",null,null,null,null,null,"212"]
["начисления на выплаты по оплате труда",null,null,null,null,null,null,null,null,null,null,null,null,null,null,null,null,null,null,null,null,null,null,null,null,null,null,null,null,null,null,null,null,null,null,null,null,null,null,null,null,null,null,null,null,null,null,null,null,"163",null,null,null,null,null,"213"]
["Приобретение работ, услуг",null,null,null,null,null,null,null,null,null,null,null,null,null,null,null,null,null,null,null,null,null,null,null,null,null,null,null,null,null,null,null,null,null,null,null,null,null,null,null,null,null,null,null,null,null,null,null,null,"170",null,null,null,null,null,"220",null,null,null,null,null,null,{"$f":"BK60","v":3324},null,null,null,null,null,null,null,null,null,null,null,null,null,{"$f":"BY60","v":3324},null,null,null,null,null,null,null,null,null,null,null,null,null,null,null,null,null,null,null,null,null,null,null,null,null,null,null,null,null,null,null,null,null,null,null,null,null,null,null,null,null,null,null,null,null,null,null,null,null,null,null,null,null,null,null,null,{"$f":"ED60","v":3324},null,null,null,null,null,null,null,null,null,null,null,null,null,null,{"$f":"BK54-ED54","v":0}]
["в том числе:",null,null,null,null,null,null,null,null,null,null,null,null,null,null,null,null,null,null,null,null,null,null,null,null,null,null,null,null,null,null,null,null,null,null,null,null,null,null,null,null,null,null,null,null,null,null,null,null,"171",null,null,null,null,null,"221"]
["услуги связи"]
["транспортные услуги",null,null,null,null,null,null,null,null,null,null,null,null,null,null,null,null,null,null,null,null,null,null,null,null,null,null,null,null,null,null,null,null,null,null,null,null,null,null,null,null,null,null,null,null,null,null,null,null,"172",null,null,null,null,null,"222"]
["коммунальные услуги",null,null,null,null,null,null,null,null,null,null,null,null,null,null,null,null,null,null,null,null,null,null,null,null,null,null,null,null,null,null,null,null,null,null,null,null,null,null,null,null,null,null,null,null,null,null,null,null,"173",null,null,null,null,null,"223"]
["арендная плата за пользование имуществом",null,null,null,null,null,null,null,null,null,null,null,null,null,null,null,null,null,null,null,null,null,null,null,null,null,null,null,null,null,null,null,null,null,null,null,null,null,null,null,null,null,null,null,null,null,null,null,null,"174",null,null,null,null,null,"224"]
["работы, услуги по содержанию имущества",null,null,null,null,null,null,null,null,null,null,null,null,null,null,null,null,null,null,null,null,null,null,null,null,null,null,null,null,null,null,null,null,null,null,null,null,null,null,null,null,null,null,null,null,null,null,null,null,"175",null,null,null,null,null,"225",null,null,null,null,null,null,3324,null,null,null,null,null,null,null,null,null,null,null,null,null,3324,null,null,null,null,null,null,null,null,null,null,null,null,null,null,null,null,null,null,null,null,null,null,null,null,null,null,null,null,null,null,null,null,null,null,null,null,null,null,null,null,null,null,null,null,null,null,null,null,null,null,null,null,null,null,null,null,{"$f":"BY60","v":3324},null,null,null,null,null,null,null,null,null,null,null,null,null,null,{"$f":"BK60-ED60","v":0}]
["прочие работы, услуги",null,null,null,null,null,null,null,null,null,null,null,null,null,null,null,null,null,null,null,null,null,null,null,null,null,null,null,null,null,null,null,null,null,null,null,null,null,null,null,null,null,null,null,null,null,null,null,null,"176",null,null,null,null,null,"226"]
["Обслуживание долговых обязательств",null,null,null,null,null,null,null,null,null,null,null,null,null,null,null,null,null,null,null,null,null,null,null,null,null,null,null,null,null,null,null,null,null,null,null,null,null,null,null,null,null,null,null,null,null,null,null,null,"190",null,null,null,null,null,"230"]
["в том числе:",null,null,null,null,null,null,null,null,null,null,null,null,null,null,null,null,null,null,null,null,null,null,null,null,null,null,null,null,null,null,null,null,null,null,null,null,null,null,null,null,null,null,null,null,null,null,null,null,"191",null,null,null,null,null,"231"]
["обслуживание долговых обязательств перед резидентами"]
["обслуживание долговых обязательств перед нерезидентами",null,null,null,null,null,null,null,null,null,null,null,null,null,null,null,null,null,null,null,null,null,null,null,null,null,null,null,null,null,null,null,null,null,null,null,null,null,null,null,null,null,null,null,null,null,null,null,null,"192",null,null,null,null,null,"232"]
["Безвозмездные перечисления организациям",null,null,null,null,null,null,null,null,null,null,null,null,null,null,null,null,null,null,null,null,null,null,null,null,null,null,null,null,null,null,null,null,null,null,null,null,null,null,null,null,null,null,null,null,null,null,null,null,"210",null,null,null,null,null,"240"]
["в том числе:",null,null,null,null,null,null,null,null,null,null,null,null,null,null,null,null,null,null,null,null,null,null,null,null,null,null,null,null,null,null,null,null,null,null,null,null,null,null,null,null,null,null,null,null,null,null,null,null,"211",null,null,null,null,null,"241"]
["безвозмездные перечисления государственным и муниципальным организациям"]
["безвозмездные перечисления организациям, за исключением государственных и муниципальных организаций",null,null,null,null,null,null,null,null,null,null,null,null,null,null,null,null,null,null,null,null,null,null,null,null,null,null,null,null,null,null,null,null,null,null,null,null,null,null,null,null,null,null,null,null,null,null,null,null,"212",null,null,null,null,null,"242"]
[null,null,null,null,null,null,null,null,null,null,null,null,null,null,null,null,null,null,null,null,null,null,null,null,null,null,null,null,null,null,null,null,null,null,null,null,null,null,null,null,null,null,null,null,null,null,null,null,null,null,null,null,null,null,null,null,null,null,null,null,null,null,null,null,null,null,null,null,null,null,null,null,null,null,null,null,null,null,null,null,null,null,null,null,null,null,null,null,null,null,null,null,null,null,null,null,null,null,null,null,null,null,null,null,null,null,null,null,null,null,null,null,null,null,null,null,null,null,null,null,null,null,null,null,null,null,null,null,null,null,null,null,null,null,null,null,null,null,null,null,null,null,null,null,null,null,null,null,null,null,null,null,null,null,null,null,null,null,null,null,null,null,null,"Форма 0503737 с. 3"]
[]
["Наименование показателя",null,null,null,null,null,null,null,null,null,null,null,null,null,null,null,null,null,null,null,null,null,null,null,null,null,null,null,null,null,null,null,null,null,null,null,null,null,null,null,null,null,null,null,null,null,null,null,null,"Код стро-ки",null,null,null,null,null,"Код анали-тики",null,null,null,null,null,null,"Утверждено плановых назначений",null,null,null,null,null,null,null,null,null,null,null,null,null,"Исполнено плановых назначений",null,null,null,null,null,null,null,null,null,null,null,null,null,null,null,null,null,null,null,null,null,null,null,null,null,null,null,null,null,null,null,null,null,null,null,null,null,null,null,null,null,null,null,null,null,null,null,null,null,null,null,null,null,null,null,null,null,null,null,null,null,null,null,null,null,null,null,null,null,null,null,"Не исполнено плановых назначений"]
[null,null,null,null,null,null,null,null,null,null,null,null,null,null,null,null,null,null,null,null,null,null,null,null,null,null,null,null,null,null,null,null,null,null,null,null,null,null,null,null,null,null,null,null,null,null,null,null,null,null,null,null,null,null,null,null,null,null,null,null,null,null,null,null,null,null,null,null,null,null,null,null,null,null,null,null,"через лицевые счета",null,null,null,null,null,null,null,null,null,null,null,null,null,null,"через банковские счета",null,null,null,null,null,null,null,null,null,null,null,null,null,null,null,"через кассу учреждения",null,null,null,null,null,null,null,null,null,null,null,null,"некассовыми операциями",null,null,null,null,null,null,null,null,null,null,null,null,"итого"]
[1,null,null,null,null,null,null,null,null,null,null,null,null,null,null,null,null,null,null,null,null,null,null,null,null,null,null,null,null,null,null,null,null,null,null,null,null,null,null,null,null,null,null,null,null,null,null,null,null,2,null,null,null,null,null,3,null,null,null,null,null,null,4,null,null,null,null,null,null,null,null,null,null,null,null,null,5,null,null,null,null,null,null,null,null,null,null,null,null,null,null,6,null,null,null,null,null,null,null,null,null,null,null,null,null,null,null,7,null,null,null,null,null,null,null,null,null,null,null,null,8,null,null,null,null,null,null,null,null,null,null,null,null,9,null,null,null,null,null,null,null,null,null,null,null,null,null,null,10]
["Безвозмездные перечисления бюджетам",null,null,null,null,null,null,null,null,null,null,null,null,null,null,null,null,null,null,null,null,null,null,null,null,null,null,null,null,null,null,null,null,null,null,null,null,null,null,null,null,null,null,null,null,null,null,null,null,"230",null,null,null,null,null,"250"]
["в том числе:",null,null,null,null,null,null,null,null,null,null,null,null,null,null,null,null,null,null,null,null,null,null,null,null,null,null,null,null,null,null,null,null,null,null,null,null,null,null,null,null,null,null,null,null,null,null,null,null,"232",null,null,null,null,null,"252"]
["перечисления наднациональным организациям и правительствам иностранных государств"]
["перечисления международным организациям",null,null,null,null,null,null,null,null,null,null,null,null,null,null,null,null,null,null,null,null,null,null,null,null,null,null,null,null,null,null,null,null,null,null,null,null,null,null,null,null,null,null,null,null,null,null,null,null,"233",null,null,null,null,null,"253"]
["Социальное обеспечение",null,null,null,null,null,null,null,null,null,null,null,null,null,null,null,null,null,null,null,null,null,null,null,null,null,null,null,null,null,null,null,null,null,null,null,null,null,null,null,null,null,null,null,null,null,null,null,null,"240",null,null,null,null,null,"260"]
["в том числе:",null,null,null,null,null,null,null,null,null,null,null,null,null,null,null,null,null,null,null,null,null,null,null,null,null,null,null,null,null,null,null,null,null,null,null,null,null,null,null,null,null,null,null,null,null,null,null,null,"242",null,null,null,null,null,"262"]
["пособия по социальной помощи населению"]
["пенсии, пособия, выплачиваемые организациями сектора государственного управления",null,null,null,null,null,null,null,null,null,null,null,null,null,null,null,null,null,null,null,null,null,null,null,null,null,null,null,null,null,null,null,null,null,null,null,null,null,null,null,null,null,null,null,null,null,null,null,null,"243",null,null,null,null,null,"263"]
["Прочие расходы",null,null,null,null,null,null,null,null,null,null,null,null,null,null,null,null,null,null,null,null,null,null,null,null,null,null,null,null,null,null,null,null,null,null,null,null,null,null,null,null,null,null,null,null,null,null,null,null,"250",null,null,null,null,null,"290"]
["Расходы по приобретению нефинансовых активов ",null,null,null,null,null,null,null,null,null,null,null,null,null,null,null,null,null,null,null,null,null,null,null,null,null,null,null,null,null,null,null,null,null,null,null,null,null,null,null,null,null,null,null,null,null,null,null,null,"260",null,null,null,null,null,"300",null,null,null,null,null,null,{"$f":"BK89","v":1905994.21},null,null,null,null,null,null,null,null,null,null,null,null,null,{"$f":"BY85+BY89","v":1905994.21},null,null,null,null,null,null,null,null,null,null,null,null,null,null,null,null,null,null,null,null,null,null,null,null,null,null,null,null,null,null,{"$f":"DD89","v":0},null,null,null,null,null,null,null,null,null,null,null,null,null,null,null,null,null,null,null,null,null,null,null,null,null,{"$f":"BY84+DD84","v":1905994.21},null,null,null,null,null,null,null,null,null,null,null,null,null,null,{"$f":"BK84-ED84","v":0}]
["в том числе:",null,null,null,null,null,null,null,null,null,null,null,null,null,null,null,null,null,null,null,null,null,null,null,null,null,null,null,null,null,null,null,null,null,null,null,null,null,null,null,null,null,null,null,null,null,null,null,null,"261",null,null,null,null,null,"310",null,null,null,null,null,null,0]
["основных средств "]
["нематериальных активов",null,null,null,null,null,null,null,null,null,null,null,null,null,null,null,null,null,null,null,null,null,null,null,null,null,null,null,null,null,null,null,null,null,null,null,null,null,null,null,null,null,null,null,null,null,null,null,null,"262",null,null,null,null,null,"320"]
["непроизведенных активов",null,null,null,null,null,null,null,null,null,null,null,null,null,null,null,null,null,null,null,null,null,null,null,null,null,null,null,null,null,null,null,null,null,null,null,null,null,null,null,null,null,null,null,null,null,null,null,null,"263",null,null,null,null,null,"330"]
["материальных запасов",null,null,null,null,null,null,null,null,null,null,null,null,null,null,null,null,null,null,null,null,null,null,null,null,null,null,null,null,null,null,null,null,null,null,null,null,null,null,null,null,null,null,null,null,null,null,null,null,"264",null,null,null,null,null,"340",null,null,null,null,null,null,1905994.21,null,null,null,null,null,null,null,null,null,null,null,null,null,{"$f":"DD21-BY54","v":1905994.21},null,null,null,null,null,null,null,null,null,null,null,null,null,null,null,null,null,null,null,null,null,null,null,null,null,null,null,null,null,null,null,null,null,null,null,null,null,null,null,null,null,null,null,null,null,null,null,null,null,null,null,null,null,null,null,null,{"$f":"BY89+DD89","v":1905994.21},null,null,null,null,null,null,null,null,null,null,null,null,null,null,{"$f":"BK89-ED89","v":0}]
[null,"из них продукты питания",null,null,null,null,null,null,null,null,null,null,null,null,null,null,null,null,null,null,null,null,null,null,null,null,null,null,null,null,null,null,null,null,null,null,null,null,null,null,null,null,null,null,null,null,null,null,null,null,null,null,null,null,null,null,null,null,null,null,null,null,1684852.32,null,null,null,null,null,null,null,null,null,null,null,null,null,1684852.32,null,null,null,null,null,null,null,null,null,null,null,null,null,null,null,null,null,null,null,null,null,null,null,null,null,null,null,null,null,null,null,null,null,null,null,null,null,null,null,null,null,null,null,null,null,null,null,null,null,null,null,null,null,null,null,null,null,{"$f":"BY90","v":1684852.32},null,null,null,null,null,null,null,null,null,null,null,null,null,{"$f":"BK90-EE90","v":0}]
["Расходы по приобретению финансовых активов ",null,null,null,null,null,null,null,null,null,null,null,null,null,null,null,null,null,null,null,null,null,null,null,null,null,null,null,null,null,null,null,null,null,null,null,null,null,null,null,null,null,null,null,null,null,null,null,null,"270",null,null,null,null,null,"500"]
["из них:",null,null,null,null,null,null,null,null,null,null,null,null,null,null,null,null,null,null,null,null,null,null,null,null,null,null,null,null,null,null,null,null,null,null,null,null,null,null,null,null,null,null,null,null,null,null,null,null,"271",null,null,null,null,null,"520"]
["ценных бумаг, кроме акций"]
["акций и иных форм участия в капитале",null,null,null,null,null,null,null,null,null,null,null,null,null,null,null,null,null,null,null,null,null,null,null,null,null,null,null,null,null,null,null,null,null,null,null,null,null,null,null,null,null,null,null,null,null,null,null,null,"272",null,null,null,null,null,"530"]
["иных финансовых активов",null,null,null,null,null,null,null,null,null,null,null,null,null,null,null,null,null,null,null,null,null,null,null,null,null,null,null,null,null,null,null,null,null,null,null,null,null,null,null,null,null,null,null,null,null,null,null,null,"273",null,null,null,null,null,"550"]
[null,null,null,null,null,null,null,null,null,null,null,null,null,null,null,null,null,null,null,null,null,null,null,null,null,null,null,null,null,null,null,null,null,null,null,null,null,null,null,null,null,null,null,null,null,null,null,null,null,null,null,null,null,null,null,null,null,null,null,null,null,null,null,null,null,null,null,null,null,null,null,null,null,null,null,null,null,null,null,null,null,null,null,null,null,null,null,null,null,null,null,37134.230000000003]
["Результат исполнения (дефицит/профицит)",null,null,null,null,null,null,null,null,null,null,null,null,null,null,null,null,null,null,null,null,null,null,null,null,null,null,null,null,null,null,null,null,null,null,null,null,null,null,null,null,null,null,null,null,null,null,null,null,"450",null,null,null,null,null,"х",null,null,null,null,null,null,null,null,null,null,null,null,null,null,null,null,null,null,null,null,null,null,null,null,null,null,null,null,null,null,null,null,null,null,null,null,null,null,null,null,null,null,null,null,null,null,null,null,null,null,null,null,null,null,null,null,null,null,null,null,null,null,null,null,null,null,null,null,null,null,null,null,null,null,null,null,null,{"$f":"ED17-ED47","v":0},null,null,null,null,null,null,null,null,null,null,null,null,null,null,"х"]
[null,null,null,null,null,null,null,null,null,null,null,null,null,null,null,null,null,null,null,null,null,null,null,null,null,null,null,null,null,null,null,null,null,null,null,null,null,null,null,null,null,null,null,null,null,null,null,null,null,null,null,null,null,null,null,null,null,null,null,null,null,null,null,null,null,null,null,null,null,null,null,null,null,null,null,null,null,null,null,null,null,null,null,null,null,null,null,null,null,null,null,null,null,null,null,null,null,null,null,null,null,null,null,null,null,null,null,null,null,null,null,null,null,null,null,null,null,null,null,null,null,null,null,null,null,null,null,null,null,null,null,null,null,20381.259999999998]
[null,null,null,null,null,null,null,null,null,null,null,null,null,null,null,null,null,null,null,null,null,null,null,null,null,null,null,null,null,"3. Источники финансирования дефицита средств учреждения",null,null,null,null,null,null,null,null,null,null,null,null,null,null,null,null,null,null,null,null,null,null,null,null,null,null,null,null,null,null,null,null,null,null,null,null,null,null,null,null,null,null,null,null,null,null,null,null,null,null,null,null,null,null,null,null,null,null,null,null,null,null,null,null,null,null,null,null,null,null,null,null,null,null,null,null,null,null,null,null,null,null,null,null,null,null,null,null,null,null,null,null,null,null,null,null,null,null,null,null,null,null,null,null,null,null,null,null,null,null,null,null,null,null,null,null,null,null,null,null,null,null,null,null,null,null,null,null,null,null,null,null,null,"Форма 0503737 с. 4"]
[]
["Наименование показателя",null,null,null,null,null,null,null,null,null,null,null,null,null,null,null,null,null,null,null,null,null,null,null,null,null,null,null,null,null,null,null,null,null,null,null,null,null,null,null,null,null,null,null,null,null,null,null,null,"Код стро-ки",null,null,null,null,null,"Код анали-тики",null,null,null,null,null,null,"Утверждено плановых назначений",null,null,null,null,null,null,null,null,null,null,null,null,null,"Исполнено плановых назначений",null,null,null,null,null,null,null,null,null,null,null,null,null,null,null,null,null,null,null,null,null,null,null,null,null,null,null,null,null,null,null,null,null,null,null,null,null,null,null,null,null,null,null,null,null,null,null,null,null,null,null,null,null,null,null,null,null,null,null,null,null,null,null,null,null,null,null,null,null,null,null,"Не исполнено плановых назначений"]
[null,null,null,null,null,null,null,null,null,null,null,null,null,null,null,null,null,null,null,null,null,null,null,null,null,null,null,null,null,null,null,null,null,null,null,null,null,null,null,null,null,null,null,null,null,null,null,null,null,null,null,null,null,null,null,null,null,null,null,null,null,null,null,null,null,null,null,null,null,null,null,null,null,null,null,null,"через лицевые счета",null,null,null,null,null,null,null,null,null,null,null,null,null,null,"через банковские счета",null,null,null,null,null,null,null,null,null,null,null,null,null,null,null,"через кассу учреждения",null,null,null,null,null,null,null,null,null,null,null,null,"некассовыми операциями",null,null,null,null,null,null,null,null,null,null,null,null,"итого"]
[1,null,null,null,null,null,null,null,null,null,null,null,null,null,null,null,null,null,null,null,null,null,null,null,null,null,null,null,null,null,null,null,null,null,null,null,null,null,null,null,null,null,null,null,null,null,null,null,null,2,null,null,null,null,null,3,null,null,null,null,null,null,4,null,null,null,null,null,null,null,null,null,null,null,null,null,5,null,null,null,null,null,null,null,null,null,null,null,null,null,null,6,null,null,null,null,null,null,null,null,null,null,null,null,null,null,null,7,null,null,null,null,null,null,null,null,null,null,null,null,8,null,null,null,null,null,null,null,null,null,null,null,null,9,null,null,null,null,null,null,null,null,null,null,null,null,null,null,10]
["Источники финансирования дефицита средств - всего (стр. 520 + стр. 620 + стр. 700 + стр. 820 + стр. 830)",null,null,null,null,null,null,null,null,null,null,null,null,null,null,null,null,null,null,null,null,null,null,null,null,null,null,null,null,null,null,null,null,null,null,null,null,null,null,null,null,null,null,null,null,null,null,null,null,"500"]
["в том числе:",null,null,null,null,null,null,null,null,null,null,null,null,null,null,null,null,null,null,null,null,null,null,null,null,null,null,null,null,null,null,null,null,null,null,null,null,null,null,null,null,null,null,null,null,null,null,null,null,"520"]
["Внутренние источники "]
["из них:",null,null,null,null,null,null,null,null,null,null,null,null,null,null,null,null,null,null,null,null,null,null,null,null,null,null,null,null,null,null,null,null,null,null,null,null,null,null,null,null,null,null,null,null,null,null,null,null,"521",null,null,null,null,null,"171"]
["положительная курсовая разница"]
["отрицательная курсовая разница",null,null,null,null,null,null,null,null,null,null,null,null,null,null,null,null,null,null,null,null,null,null,null,null,null,null,null,null,null,null,null,null,null,null,null,null,null,null,null,null,null,null,null,null,null,null,null,null,"522",null,null,null,null,null,"171"]
["поступления средств учреждения с депозитов",null,null,null,null,null,null,null,null,null,null,null,null,null,null,null,null,null,null,null,null,null,null,null,null,null,null,null,null,null,null,null,null,null,null,null,null,null,null,null,null,null,null,null,null,null,null,null,null,"523",null,null,null,null,null,"510"]
["размещение средств учреждения на депозиты",null,null,null,null,null,null,null,null,null,null,null,null,null,null,null,null,null,null,null,null,null,null,null,null,null,null,null,null,null,null,null,null,null,null,null,null,null,null,null,null,null,null,null,null,null,null,null,null,"524",null,null,null,null,null,"610"]
["поступления от погашения займов (ссуд)",null,null,null,null,null,null,null,null,null,null,null,null,null,null,null,null,null,null,null,null,null,null,null,null,null,null,null,null,null,null,null,null,null,null,null,null,null,null,null,null,null,null,null,null,null,null,null,null,"525",null,null,null,null,null,"640"]
["выплаты по предоставлению займов (ссуд) ",null,null,null,null,null,null,null,null,null,null,null,null,null,null,null,null,null,null,null,null,null,null,null,null,null,null,null,null,null,null,null,null,null,null,null,null,null,null,null,null,null,null,null,null,null,null,null,null,"526",null,null,null,null,null,"540"]
["поступления заимствований от резидентов",null,null,null,null,null,null,null,null,null,null,null,null,null,null,null,null,null,null,null,null,null,null,null,null,null,null,null,null,null,null,null,null,null,null,null,null,null,null,null,null,null,null,null,null,null,null,null,null,"527",null,null,null,null,null,"710"]
["погашение заимствований от нерезидентов",null,null,null,null,null,null,null,null,null,null,null,null,null,null,null,null,null,null,null,null,null,null,null,null,null,null,null,null,null,null,null,null,null,null,null,null,null,null,null,null,null,null,null,null,null,null,null,null,"528",null,null,null,null,null,"810"]
["Внешние источники",null,null,null,null,null,null,null,null,null,null,null,null,null,null,null,null,null,null,null,null,null,null,null,null,null,null,null,null,null,null,null,null,null,null,null,null,null,null,null,null,null,null,null,null,null,null,null,null,"620"]
["из них:",null,null,null,null,null,null,null,null,null,null,null,null,null,null,null,null,null,null,null,null,null,null,null,null,null,null,null,null,null,null,null,null,null,null,null,null,null,null,null,null,null,null,null,null,null,null,null,null,"621",null,null,null,null,null,"171"]
["положительная курсовая разница"]
["отрицательная курсовая разница",null,null,null,null,null,null,null,null,null,null,null,null,null,null,null,null,null,null,null,null,null,null,null,null,null,null,null,null,null,null,null,null,null,null,null,null,null,null,null,null,null,null,null,null,null,null,null,null,"622",null,null,null,null,null,"171"]
["поступления заимствований от резидентов",null,null,null,null,null,null,null,null,null,null,null,null,null,null,null,null,null,null,null,null,null,null,null,null,null,null,null,null,null,null,null,null,null,null,null,null,null,null,null,null,null,null,null,null,null,null,null,null,"625",null,null,null,null,null,"720"]
["погашение заимствований от нерезидентов",null,null,null,null,null,null,null,null,null,null,null,null,null,null,null,null,null,null,null,null,null,null,null,null,null,null,null,null,null,null,null,null,null,null,null,null,null,null,null,null,null,null,null,null,null,null,null,null,"626",null,null,null,null,null,"820"]
["Изменение остатков средств",null,null,null,null,null,null,null,null,null,null,null,null,null,null,null,null,null,null,null,null,null,null,null,null,null,null,null,null,null,null,null,null,null,null,null,null,null,null,null,null,null,null,null,null,null,null,null,null,"700",null,null,null,null,null,"х"]
["увеличение остатков средств, всего",null,null,null,null,null,null,null,null,null,null,null,null,null,null,null,null,null,null,null,null,null,null,null,null,null,null,null,null,null,null,null,null,null,null,null,null,null,null,null,null,null,null,null,null,null,null,null,null,"710",null,null,null,null,null,"510",null,null,null,null,null,null,null,null,null,null,null,null,null,null,null,null,null,null,null,null,null,null,null,null,null,null,null,null,null,null,null,null,null,null,null,null,null,null,null,null,null,null,null,null,null,null,null,null,null,null,null,null,null,null,null,null,null,null,null,null,null,null,null,null,null,null,null,null,null,null,null,null,null,null,null,null,null,null,null,null,null,null,null,null,null,null,null,null,null,null,null,null,"х"]
["уменьшение остатков средств, всего",null,null,null,null,null,null,null,null,null,null,null,null,null,null,null,null,null,null,null,null,null,null,null,null,null,null,null,null,null,null,null,null,null,null,null,null,null,null,null,null,null,null,null,null,null,null,null,null,"720",null,null,null,null,null,"610",null,null,null,null,null,null,null,null,null,null,null,null,null,null,null,null,null,null,null,null,null,null,null,null,null,null,null,null,null,null,null,null,null,null,null,null,null,null,null,null,null,null,null,null,null,null,null,null,null,null,null,null,null,null,null,null,null,null,null,null,null,null,null,null,null,null,null,null,null,null,null,null,null,null,null,null,null,null,null,null,null,null,null,null,null,null,null,null,null,null,null,null,"х"]
["Изменение остатков по внутренним оборотам средств учреждения",null,null,null,null,null,null,null,null,null,null,null,null,null,null,null,null,null,null,null,null,null,null,null,null,null,null,null,null,null,null,null,null,null,null,null,null,null,null,null,null,null,null,null,null,null,null,null,null,"730",null,null,null,null,null,"х"]
["в том числе:",null,null,null,null,null,null,null,null,null,null,null,null,null,null,null,null,null,null,null,null,null,null,null,null,null,null,null,null,null,null,null,null,null,null,null,null,null,null,null,null,null,null,null,null,null,null,null,null,"731",null,null,null,null,null,"510"]
["увеличение остатков средств учреждения "]
["уменьшение остатков средств учреждения",null,null,null,null,null,null,null,null,null,null,null,null,null,null,null,null,null,null,null,null,null,null,null,null,null,null,null,null,null,null,null,null,null,null,null,null,null,null,null,null,null,null,null,null,null,null,null,null,"732",null,null,null,null,null,"610"]
[null,null,null,null,null,null,null,null,null,null,null,null,null,null,null,null,null,null,null,null,null,null,null,null,null,null,null,null,null,null,null,null,null,null,null,null,null,null,null,null,null,null,null,null,null,null,null,null,null,null,null,null,null,null,null,null,null,null,null,null,null,null,null,null,null,null,null,null,null,null,null,null,null,null,null,null,null,null,null,null,null,null,null,null,null,null,null,null,null,null,null,null,null,null,null,null,null,null,null,null,null,null,null,null,null,null,null,null,null,null,null,null,null,null,null,null,null,null,null,null,null,null,null,null,null,null,null,null,null,null,null,null,null,null,null,null,null,null,null,null,null,null,null,null,null,null,null,null,null,null,null,null,null,null,null,null,null,null,null,null,null,null,null,"Форма 0503737 с. 5"]
[]
["Наименование показателя",null,null,null,null,null,null,null,null,null,null,null,null,null,null,null,null,null,null,null,null,null,null,null,null,null,null,null,null,null,null,null,null,null,null,null,null,null,null,null,null,null,null,null,null,null,null,null,null,"Код стро-ки",null,null,null,null,null,"Код анали-тики",null,null,null,null,null,null,"Утверждено плановых назначений",null,null,null,null,null,null,null,null,null,null,null,null,null,"Исполнено плановых назначений",null,null,null,null,null,null,null,null,null,null,null,null,null,null,null,null,null,null,null,null,null,null,null,null,null,null,null,null,null,null,null,null,null,null,null,null,null,null,null,null,null,null,null,null,null,null,null,null,null,null,null,null,null,null,null,null,null,null,null,null,null,null,null,null,null,null,null,null,null,null,null,"Не исполнено плановых назначений"]
[null,null,null,null,null,null,null,null,null,null,null,null,null,null,null,null,null,null,null,null,null,null,null,null,null,null,null,null,null,null,null,null,null,null,null,null,null,null,null,null,null,null,null,null,null,null,null,null,null,null,null,null,null,null,null,null,null,null,null,null,null,null,null,null,null,null,null,null,null,null,null,null,null,null,null,null,"через лицевые счета",null,null,null,null,null,null,null,null,null,null,null,null,null,null,"через банковские счета",null,null,null,null,null,null,null,null,null,null,null,null,null,null,null,"через кассу учреждения",null,null,null,null,null,null,null,null,null,null,null,null,"некассовыми операциями",null,null,null,null,null,null,null,null,null,null,null,null,"итого"]
[1,null,null,null,null,null,null,null,null,null,null,null,null,null,null,null,null,null,null,null,null,null,null,null,null,null,null,null,null,null,null,null,null,null,null,null,null,null,null,null,null,null,null,null,null,null,null,null,null,2,null,null,null,null,null,3,null,null,null,null,null,null,4,null,null,null,null,null,null,null,null,null,null,null,null,null,5,null,null,null,null,null,null,null,null,null,null,null,null,null,null,6,null,null,null,null,null,null,null,null,null,null,null,null,null,null,null,7,null,null,null,null,null,null,null,null,null,null,null,null,8,null,null,null,null,null,null,null,null,null,null,null,null,9,null,null,null,null,null,null,null,null,null,null,null,null,null,null,10]
["Изменение остатков по внутренним расчетам ",null,null,null,null,null,null,null,null,null,null,null,null,null,null,null,null,null,null,null,null,null,null,null,null,null,null,null,null,null,null,null,null,null,null,null,null,null,null,null,null,null,null,null,null,null,null,null,null,"820",null,null,null,null,null,"х"]
["в том числе:",null,null,null,null,null,null,null,null,null,null,null,null,null,null,null,null,null,null,null,null,null,null,null,null,null,null,null,null,null,null,null,null,null,null,null,null,null,null,null,null,null,null,null,null,null,null,null,null,"821"]
["увеличение остатков по внутренним расчетам (Кт 030404510)"]
["уменьшение остатков по внутренним расчетам (Дт 030404610)",null,null,null,null,null,null,null,null,null,null,null,null,null,null,null,null,null,null,null,null,null,null,null,null,null,null,null,null,null,null,null,null,null,null,null,null,null,null,null,null,null,null,null,null,null,null,null,null,"822"]
["Изменение остатков расчетов по внутренним привлечениям средств ",null,null,null,null,null,null,null,null,null,null,null,null,null,null,null,null,null,null,null,null,null,null,null,null,null,null,null,null,null,null,null,null,null,null,null,null,null,null,null,null,null,null,null,null,null,null,null,null,"830",null,null,null,null,null,"х"]
["в том числе:",null,null,null,null,null,null,null,null,null,null,null,null,null,null,null,null,null,null,null,null,null,null,null,null,null,null,null,null,null,null,null,null,null,null,null,null,null,null,null,null,null,null,null,null,null,null,null,null,"831"]
["увеличение расчетов по внутреннему привлечению остатков средств (Кт 030406000)"]
["уменьшение расчетов по внутреннему привлечению остатков средств (Дт 030406000)",null,null,null,null,null,null,null,null,null,null,null,null,null,null,null,null,null,null,null,null,null,null,null,null,null,null,null,null,null,null,null,null,null,null,null,null,null,null,null,null,null,null,null,null,null,null,null,null,"832"]
[]
[]
["Руководитель",null,null,null,null,null,null,null,null,null,null,null,null,null,null,null,null,null,null,null,null,null,null,null,null,null,null,null,null,null,null,null,null,null,null,null,null,null,"Алехина С.В.",null,null,null,null,null,null,null,null,null,null,null,null,null,null,null,null,null,null,null,null,null,null,null,null,null,null,null,null,null,null,null,null,null,null,null,null,null,null,null,null,null,null,null,null,null,null,null,null,null,null,null,null,"Руководитель финансово-"]
[null,null,null,null,null,null,null,null,null,null,null,null,null,"(подпись)",null,null,null,null,null,null,null,null,null,null,null,null,null,null,null,null,null,null,null,null,null,null,null,null,"(расшифровка подписи)",null,null,null,null,null,null,null,null,null,null,null,null,null,null,null,null,null,null,null,null,null,null,null,null,null,null,null,null,null,null,null,null,null,null,null,null,null,null,null,null,null,null,null,null,null,null,null,null,null,null,null,null,"экономической службы"]
[null,null,null,null,null,null,null,null,null,null,null,null,null,null,null,null,null,null,null,null,null,null,null,null,null,null,null,null,null,null,null,null,null,null,null,null,null,null,null,null,null,null,null,null,null,null,null,null,null,null,null,null,null,null,null,null,null,null,null,null,null,null,null,null,null,null,null,null,null,null,null,null,null,null,null,null,null,null,null,null,null,null,null,null,null,null,null,null,null,null,null,null,null,null,null,null,null,null,null,null,null,null,null,null,null,null,null,null,null,null,null,null,null,null,"(подпись)",null,null,null,null,null,null,null,null,null,null,null,null,null,null,null,null,null,"(расшифровка подписи)"]
["Главный бухгалтер",null,null,null,null,null,null,null,null,null,null,null,null,null,null,null,null,null,null,null,null,null,null,null,null,null,null,null,null,null,null,null,null,null,null,null,null,null,"Тимошина Л.П."]
[null,null,null,null,null,null,null,null,null,null,null,null,null,null,null,null,null,"(подпись)",null,null,null,null,null,null,null,null,null,null,null,null,null,null,null,null,null,null,null,null,"(расшифровка подписи)"]
[]
[]
[null,null,null,null,null,null,null,null,null,null,null,null,null,null,null,null,null,null,null,null,null,null,null,null,null,null,null,null,null,null,null,null,null,null,null,null,null,null,null,null,null,null,null,null,null,null,null,null,null,null,null,null,null,null,null,null,null,null,null,null,null,null,null,null,"Централизованная бухгалтерия"]
[null,null,null,null,null,null,null,null,null,null,null,null,null,null,null,null,null,null,null,null,null,null,null,null,null,null,null,null,null,null,null,null,null,null,null,null,null,null,null,null,null,null,null,null,null,null,null,null,null,null,null,null,null,null,null,null,null,null,null,null,null,null,null,null,null,null,null,null,null,null,null,null,null,null,null,null,null,null,null,null,null,null,null,null,null,null,null,null,null,null,null,null,null,null,null,null,null,"(наименование, ОГРН, ИНН, КПП, местонахождение)"]
[null,null,null,null,null,null,null,null,null,null,null,null,null,null,null,null,null,null,null,null,null,null,null,null,null,null,null,null,null,null,null,null,null,null,null,null,null,null,null,null,null,null,null,null,null,null,null,null,null,null,null,null,null,null,null,null,null,null,null,null,null,null,null,null,"Руководитель"]
[null,null,null,null,null,null,null,null,null,null,null,null,null,null,null,null,null,null,null,null,null,null,null,null,null,null,null,null,null,null,null,null,null,null,null,null,null,null,null,null,null,null,null,null,null,null,null,null,null,null,null,null,null,null,null,null,null,null,null,null,null,null,null,null,"(уполномоченное лицо)"]
[null,null,null,null,null,null,null,null,null,null,null,null,null,null,null,null,null,null,null,null,null,null,null,null,null,null,null,null,null,null,null,null,null,null,null,null,null,null,null,null,null,null,null,null,null,null,null,null,null,null,null,null,null,null,null,null,null,null,null,null,null,null,null,null,null,null,null,null,null,null,null,null,null,null,null,null,null,null,null,null,null,null,null,null,null,null,"(должность)",null,null,null,null,null,null,null,null,null,null,null,null,null,null,null,null,null,null,null,null,null,null,null,null,null,null,null,null,"(подпись)",null,null,null,null,null,null,null,null,null,null,null,null,null,null,null,null,null,null,null,null,"(расшифровка подписи)"]
[]
["Исполнитель",null,null,null,null,null,null,null,null,null,null,null,null,"Главный бухгалтер",null,null,null,null,null,null,null,null,null,null,null,null,null,null,null,null,null,null,null,null,null,null,null,null,null,null,null,null,null,null,null,null,null,null,null,null,null,null,null,null,null,null,null,null,null,null,null,"Тимошина Л.П.",null,null,null,null,null,null,null,null,null,null,null,null,null,null,null,null,null,null,null,null,null,null,null,null,null,null,null,null,null,"2-13-03"]
[null,null,null,null,null,null,null,null,null,null,null,null,null,"(должность)",null,null,null,null,null,null,null,null,null,null,null,null,null,null,null,null,null,null,null,null,null,null,null,null,null,null,null,"(подпись)",null,null,null,null,null,null,null,null,null,null,null,null,null,null,null,null,null,null,null,"(расшифровка подписи)",null,null,null,null,null,null,null,null,null,null,null,null,null,null,null,null,null,null,null,null,null,null,null,null,null,null,null,null,null,"(телефон, e-mail)"]
[]
["\"",null,"11",null,null,"\"",null,null,"января",null,null,null,null,null,null,null,null,null,null,null,null,null,null,null,20,null,null,null,"16",null,null," г."]
[null,null,null,null,null,null,null,null,236]